bitfinex/quotes_BTCUSD_20220211
["timestamp","ask_amount","ask_price","bid_price","bid_amount"]
[1644571779152,0.05749,43514.0,43510.0,0.0581429]
[1644571779355,0.05749,43514.0,43510.0,0.00065466]
[1644571779607,0.05749,43514.0,43507.0,0.19492351]
[1644571779807,0.05749,43514.0,43510.0,0.00065466]
[1644571780206,0.114981,43514.0,43510.0,0.00065466]
[1644571780406,0.08882312,43511.0,43510.0,0.00065466]
[1644571780810,0.08882312,43511.0,43509.0,0.00021825]
[1644571781008,0.08882312,43511.0,43508.0,0.00065469]
[1644571781208,0.08882312,43511.0,43508.0,0.00087294]
[1644571781608,0.14631612,43511.0,43509.0,0.05749122]
[1644571781909,0.164986,43516.0,43509.0,0.05749122]
[1644571782109,0.229968,43518.0,43509.0,0.05770947]
[1644571782309,0.33745293,43528.0,43509.0,0.25219648]
[1644571782310,0.05,43520.0,43509.0,0.25219648]
[1644571782508,0.49360715,43521.0,43512.0,0.19655255]
[1644571782714,2.43706863,43529.0,43514.0,0.05748426]
[1644571782911,0.41387565,43530.0,43515.0,0.36851822]
[1644571783109,0.24987502,43530.0,43522.0,0.19655255]
[1644571783363,0.1417,43533.0,43522.0,0.24245255]
[1644571783658,0.1417,43533.0,43523.0,0.322682]
[1644571783859,0.1417,43533.0,43524.0,0.0459]
[1644571784057,0.0881333,43534.0,43524.0,0.0459]
[1644571784258,0.0881333,43534.0,43525.0,0.322682]
[1644571784461,0.33405657,43527.0,43525.0,0.0459]
[1644571784658,0.38405657,43527.0,43525.0,0.0459]
[1644571785061,0.12664547,43527.0,43525.0,0.0459]
[1644571785261,0.05,43527.0,43525.0,0.0459]
[1644571785465,2.17128459,43535.0,43526.0,0.322682]
[1644571785662,0.05,43535.0,43525.0,0.0459]
[1644571785865,0.32740362,43536.0,43525.0,0.0459]
[1644571786161,0.32740362,43536.0,43526.0,0.19655255]
[1644571786162,0.26918162,43535.0,43526.0,0.19655255]
[1644571786362,0.26918162,43535.0,43527.0,0.51923455]
[1644571786564,0.05,43536.0,43527.0,0.42639879]
[1644571786765,0.057461,43539.0,43529.0,0.322682]
[1644571786766,0.107459,43539.0,43529.0,0.322682]
[1644571786999,0.107459,43539.0,43530.0,0.0459]
[1644571787000,0.05,43539.0,43530.0,0.0459]
[1644571787199,0.00065682,43536.0,43531.0,0.0459]
[1644571787802,0.00065682,43536.0,43532.0,0.322682]
[1644571788001,0.00065682,43536.0,43533.0,0.0459]
[1644571788199,0.35156273,43538.0,43533.0,0.10335864]
[1644571788403,0.00067219,43536.0,43533.0,0.10335864]
[1644571789299,0.54116153,43539.0,43533.0,0.10335864]
[1644571789500,0.00067219,43537.0,43533.0,0.10335864]
[1644571790100,0.05813319,43537.0,43533.0,0.10335864]
[1644571790301,0.05813319,43537.0,43533.0,0.0459]
[1644571790599,0.057461,43537.0,43533.0,0.0459]
[1644571790856,0.05813319,43537.0,43533.0,0.0459]
[1644571791454,0.05813319,43537.0,43527.0,0.31147075]
[1644571791455,0.42079043,43536.0,43527.0,0.1149182]
[1644571791656,0.36332543,43536.0,43527.0,0.0459]
[1644571792056,0.41332543,43536.0,43523.0,0.00065297]
[1644571792257,0.24361105,43527.0,43523.0,0.00065297]
[1644571792459,0.31830236,43524.0,43523.0,0.00065297]
[1644571792656,0.61982215,43524.0,43523.0,0.00065297]
[1644571792858,0.66982215,43524.0,43515.0,0.4458]
[1644571793056,0.06375111,43516.0,43515.0,0.5032784]
[1644571793258,0.06375111,43516.0,43515.0,0.3801604]
[1644571793757,0.3489781,43516.0,43515.0,0.3801604]
[1644571793958,0.3489781,43516.0,43515.0,0.0574784]
[1644571794157,0.3489781,43516.0,43513.0,0.00021825]
[1644571794358,0.3489781,43516.0,43513.0,0.00065312]
[1644571795006,0.31172555,43515.0,43513.0,0.00065312]
[1644571795210,0.3989781,43516.0,43513.0,0.00065312]
[1644571795406,0.3989781,43516.0,43510.0,0.00021825]
[1644571795407,0.057496,43515.0,43510.0,0.00021825]
[1644571795608,0.26184348,43511.0,43508.0,0.00021825]
[1644571795807,0.31184348,43511.0,43505.0,0.00263098]
[1644571796007,0.26009254,43509.0,43505.0,0.00263098]
[1644571796209,0.53872412,43508.0,43505.0,0.00263098]
[1644571796407,0.48122212,43508.0,43505.0,0.00263098]
[1644571796606,0.48122212,43508.0,43502.0,0.00021825]
[1644571796807,0.48122212,43508.0,43504.0,0.00065768]
[1644571797205,0.29693389,43506.0,43504.0,0.00065768]
[1644571797405,0.48122212,43508.0,43504.0,0.00065768]
[1644571797806,0.48122212,43508.0,43503.0,0.00021825]
[1644571798009,0.48122212,43508.0,43504.0,0.00065768]
[1644571798649,0.31330254,43507.0,43504.0,0.00065768]
[1644571799150,0.31330254,43507.0,43502.0,0.00021825]
[1644571799355,0.31330254,43507.0,43503.0,0.00063482]
[1644571799356,0.61483038,43507.0,43503.0,0.00063482]
[1644571800153,0.66483038,43507.0,43503.0,0.00063482]
[1644571800351,0.66483038,43507.0,43502.0,0.00021825]
[1644571800550,0.66483038,43507.0,43503.0,0.00063482]
[1644571800952,0.36330254,43507.0,43503.0,0.00063482]
[1644571801253,0.31330254,43507.0,43503.0,0.00063482]
[1644571801454,0.6147843,43507.0,43502.0,0.00021825]
[1644571801650,0.6147843,43507.0,43501.0,0.01]
[1644571802106,0.057505,43506.0,43501.0,0.01]
[1644571802907,0.20636239,43496.0,43491.0,0.01]
[1644571803108,0.53690229,43495.0,43491.0,0.01]
[1644571803308,0.84710182,43495.0,43491.0,0.01]
[1644571803708,0.79710182,43495.0,43491.0,0.01]
[1644571803909,0.29469653,43494.0,43491.0,0.01]
[1644571804113,0.29469653,43494.0,43491.0,0.01065744]
[1644571804512,0.35221953,43494.0,43491.0,0.01065744]
[1644571804912,0.29469653,43494.0,43491.0,0.01065744]
[1644571805113,0.29469653,43494.0,43491.0,0.01]
[1644571805513,0.29469653,43494.0,43491.0,0.01022566]
[1644571805756,0.34469653,43494.0,43491.0,0.01022566]
[1644571805950,0.32668735,43493.0,43491.0,0.01022566]
[1644571806149,0.32668735,43493.0,43491.0,0.01]
[1644571806350,0.5,43492.0,43485.0,0.00022566]
[1644571806555,0.107524,43491.0,43490.0,0.00065708]
[1644571806754,0.157524,43491.0,43490.0,0.00065708]
[1644571806951,0.057524,43491.0,43490.0,0.00065708]
[1644571807150,0.107524,43491.0,43490.0,0.00065708]
[1644571807351,0.057524,43491.0,43490.0,0.00065708]
[1644571807650,0.230119,43491.0,43484.0,0.00022566]
[1644571807850,0.280119,43491.0,43488.0,0.00065708]
[1644571808451,0.057532,43489.0,43488.0,0.00065708]
[1644571808851,0.40424527,43488.0,43483.0,0.00022566]
[1644571809051,0.40424527,43488.0,43487.0,0.00065709]
[1644571809254,0.74823715,43488.0,43487.0,0.00065709]
[1644571810102,0.05,43487.0,43486.0,0.13439904]
[1644571810303,0.36495781,43487.0,43486.0,0.13439904]
[1644571811106,0.45,43486.0,43482.0,0.00022566]
[1644571811304,0.172598,43486.0,43484.0,0.00065687]
[1644571811504,0.35806841,43485.0,43484.0,0.00065687]
[1644571812404,0.35806841,43485.0,43482.0,0.00022566]
[1644571812605,0.26134389,43480.0,43471.0,0.01090016]
[1644571812804,0.44912759,43479.0,43471.0,0.01090016]
[1644571813007,0.32527782,43472.0,43471.0,0.01090016]
[1644571813279,0.65,43471.0,43467.0,0.00022619]
[1644571813465,0.53903609,43473.0,43466.0,0.00022619]
[1644571813466,0.12667609,43473.0,43466.0,0.00022619]
[1644571813863,0.08903609,43473.0,43469.0,0.00065695]
[1644571814062,0.31017836,43472.0,43469.0,0.00065695]
[1644571814661,0.31055061,43471.0,43469.0,0.00065695]
[1644571814863,0.36810261,43471.0,43468.0,0.00022619]
[1644571815063,0.36810261,43471.0,43468.0,0.00065695]
[1644571815262,0.36810261,43471.0,43468.0,0.00088314]
[1644571815263,0.05,43470.0,43468.0,0.00088314]
[1644571815563,0.41269495,43470.0,43468.0,0.00065695]
[1644571815762,0.30185867,43469.0,43468.0,0.00065695]
[1644571816163,0.30185867,43469.0,43467.0,0.13439904]
[1644571816762,0.35185867,43469.0,43467.0,0.13439904]
[1644571817018,0.057552,43470.0,43467.0,0.13439904]
[1644571817318,0.06890609,43473.0,43467.0,0.13439904]
[1644571817814,0.06890609,43473.0,43467.0,0.13462523]
[1644571818213,0.28421984,43468.0,43467.0,0.13462523]
[1644571818416,0.34177384,43468.0,43467.0,0.13439904]
[1644571819214,0.39177384,43468.0,43467.0,0.13439904]
[1644571819817,0.70723826,43468.0,43467.0,0.13439904]
[1644571820857,0.6378994,43468.0,43467.0,0.13439904]
[1644571821056,0.33421984,43468.0,43467.0,0.13439904]
[1644571823256,0.66837813,43468.0,43467.0,0.13439904]
[1644571823461,0.61837813,43468.0,43467.0,0.13439904]
[1644571824702,0.66837813,43468.0,43467.0,0.13439904]
[1644571825604,0.28421984,43468.0,43467.0,0.13439904]
[1644571826802,0.33421984,43468.0,43467.0,0.13439904]
[1644571827203,0.63550837,43468.0,43467.0,0.13439904]
[1644571827604,0.69306637,43468.0,43467.0,0.13439904]
[1644571828658,0.06352721,43462.0,43461.0,0.01]
[1644571829656,0.36196924,43462.0,43461.0,0.01]
[1644571830558,0.36196924,43462.0,43461.0,0.20655255]
[1644571831559,0.06352721,43462.0,43461.0,0.20655255]
[1644571833604,29.86471068,43463.0,43461.0,0.25655255]
[1644571833806,29.20943328,43463.0,43462.0,0.0459]
[1644571835004,29.20943328,43463.0,43462.0,0.0959]
[1644571835307,29.27519141,43463.0,43462.0,0.0459]
[1644571836555,29.20943328,43463.0,43462.0,0.4156198]
[1644571836754,29.20943328,43463.0,43462.0,0.1459]
[1644571837560,29.20943328,43463.0,43460.0,0.00069228]
[1644571837561,26.80090321,43451.0,43448.0,0.84282965]
[1644571837858,26.80090321,43451.0,43450.0,0.0001]
[1644571837859,26.01455609,43451.0,43450.0,0.0001]
[1644571838455,0.0745796,43454.0,43450.0,0.0001]
[1644571838755,0.28421984,43468.0,43456.0,0.057541]
[1644571838956,0.28421984,43468.0,43457.0,0.0459]
[1644571838957,0.37623408,43464.0,43457.0,0.0459]
[1644571839155,0.37623408,43464.0,43458.0,0.368582]
[1644571839803,0.07473493,43459.0,43458.0,0.426122]
[1644571840004,0.07473493,43459.0,43458.0,0.426126]
[1644571840604,0.00046294,43463.0,43458.0,0.426126]
[1644571841004,0.00046294,43463.0,43460.0,0.322682]
[1644571841205,0.00046294,43463.0,43461.0,0.103441]
[1644571841407,0.28421984,43468.0,43461.0,0.103441]
[1644571841605,0.07917327,43463.0,43462.0,0.322682]
[1644571842508,0.0784814,43463.0,43461.0,0.0459]
[1644571842910,0.0784814,43463.0,43462.0,0.322682]
[1644571843107,0.0784814,43463.0,43462.0,0.0459]
[1644571843553,0.08943402,43467.0,43462.0,0.368582]
[1644571843754,0.08943402,43467.0,43462.0,0.0459]
[1644571843956,0.00069186,43465.0,43456.0,0.0459]
[1644571844154,0.00069186,43465.0,43457.0,0.322682]
[1644571844554,0.29605625,43463.0,43457.0,0.322682]
[1644571844955,0.39147108,43461.0,43457.0,0.322682]
[1644571845154,0.0864116,43460.0,43457.0,0.322682]
[1644571848411,0.0864116,43460.0,43456.0,0.0006923]
[1644571848610,0.0864116,43460.0,43453.0,0.057553]
[1644571848810,0.0864116,43460.0,43456.0,0.0006923]
[1644571849810,0.0864116,43460.0,43454.0,0.322682]
[1644571850011,0.0864116,43460.0,43456.0,0.0006923]
[1644571851256,0.0864116,43460.0,43457.0,0.322682]
[1644571851450,0.0864116,43460.0,43457.0,0.317682]
[1644571851651,0.0864116,43460.0,43457.0,0.31790861]
[1644571852255,0.0864116,43460.0,43457.0,0.317682]
[1644571852455,0.0864116,43460.0,43457.0,0.31790861]
[1644571854255,0.40330099,43458.0,43457.0,0.31790861]
[1644571854506,0.40330099,43458.0,43457.0,0.317682]
[1644571856209,0.40330099,43458.0,43456.0,0.32329461]
[1644571856406,0.40330099,43458.0,43456.0,0.323068]
[1644571856807,0.40330099,43458.0,43456.0,0.51838707]
[1644571857005,0.40330099,43458.0,43457.0,0.19531907]
[1644571857209,0.40330099,43458.0,43457.0,0.323068]
[1644571858108,0.40330099,43458.0,43457.0,0.51838707]
[1644571858354,0.0864116,43460.0,43458.0,0.323068]
[1644571858556,0.59774995,43463.0,43459.0,0.323068]
[1644571858557,0.29605625,43463.0,43459.0,0.323068]
[1644571858757,0.29605625,43463.0,43460.0,0.19558194]
[1644571858953,0.29605625,43463.0,43461.0,0.323068]
[1644571859355,0.29605625,43463.0,43462.0,0.323068]
[1644571859553,0.115105,43466.0,43461.0,0.32329461]
[1644571859753,0.07466545,43465.0,43460.0,0.19558194]
[1644571859954,0.05820586,43467.0,43460.0,0.19558194]
[1644571859955,0.00065486,43467.0,43461.0,0.00022661]
[1644571860154,0.00065486,43467.0,43462.0,0.51864994]
[1644571860355,0.00065486,43467.0,43461.0,0.3991231]
[1644571860356,0.00065486,43467.0,43464.0,0.323068]
[1644571860553,0.00065486,43467.0,43465.0,0.057537]
[1644571860854,0.00065486,43467.0,43466.0,0.323068]
[1644571861053,0.00065488,43467.0,43466.0,0.323068]
[1644571861854,0.08879565,43468.0,43466.0,0.323068]
[1644571862100,0.08879565,43468.0,43466.0,0.380605]
[1644571862499,0.00065488,43469.0,43466.0,0.380605]
[1644571862902,0.39347372,43474.0,43466.0,0.323068]
[1644571863101,0.002,43468.0,43465.0,0.00022661]
[1644571863300,0.002,43468.0,43465.0,0.380604]
[1644571863501,0.002,43468.0,43466.0,0.65931242]
[1644571863705,0.002,43468.0,43467.0,0.0459]
[1644571863903,0.002,43468.0,43467.0,0.368968]
[1644571864106,0.002,43468.0,43467.0,0.943368]
[1644571864303,0.29438065,43483.0,43467.0,1.043368]
[1644571864506,0.29438065,43485.0,43470.0,0.40473067]
[1644571864705,0.37152218,43480.0,43471.0,0.42648662]
[1644571864903,0.37152218,43480.0,43473.0,0.057523]
[1644571864904,0.08857071,43480.0,43473.0,0.057523]
[1644571865105,0.08857071,43480.0,43474.0,0.368968]
[1644571865305,0.08857071,43480.0,43474.0,0.468968]
[1644571865606,0.08857071,43480.0,43476.0,0.323068]
[1644571865857,0.57510385,43485.0,43477.0,0.33952958]
[1644571866055,0.2807232,43485.0,43477.0,0.38542958]
[1644571866258,0.2807232,43485.0,43477.0,0.0459]
[1644571866454,0.38699771,43483.0,43477.0,0.0459]
[1644571866857,0.06705213,43482.0,43478.0,0.323068]
[1644571867057,0.06705213,43482.0,43479.0,0.0459]
[1644571867357,0.06705213,43482.0,43480.0,0.0459]
[1644571867557,0.06705213,43482.0,43481.0,0.0459]
[1644571868556,0.06705213,43482.0,43476.0,0.0459]
[1644571868758,0.05,43481.0,43476.0,0.0459]
[1644571869360,0.05,43481.0,43470.0,0.0459]
[1644571869361,0.05,43477.0,43470.0,0.0459]
[1644571869604,0.20069416,43481.0,43467.0,0.00022699]
[1644571869605,0.4339333,43475.0,43467.0,0.00022699]
[1644571869811,0.05,43469.0,43465.0,0.00022699]
[1644571870003,0.05,43469.0,43464.0,0.00022699]
[1644571870004,0.06729337,43468.0,43464.0,0.00022699]
[1644571870205,0.05,43465.0,43460.0,0.00022699]
[1644571870404,0.05,43465.0,43456.0,0.2929786]
[1644571870405,0.29955781,43464.0,43461.0,0.323068]
[1644571870606,0.08995073,43461.0,43457.0,0.323068]
[1644571870803,0.34040751,43463.0,43457.0,0.32329499]
[1644571871203,0.34040751,43463.0,43457.0,0.00022699]
[1644571871404,0.34040751,43463.0,43456.0,0.00069443]
[1644571871710,0.05,43462.0,43457.0,0.323068]
[1644571871904,0.34040751,43463.0,43456.0,0.00069436]
[1644571872105,0.34040751,43463.0,43457.0,0.323068]
[1644571872604,0.34040751,43463.0,43457.0,0.32329499]
[1644571872803,0.34040751,43463.0,43457.0,0.323068]
[1644571873004,0.08233913,43465.0,43457.0,0.323068]
[1644571873263,0.08233913,43465.0,43457.0,0.51886525]
[1644571873659,0.22828722,43470.0,43457.0,0.51886525]
[1644571873660,0.66145476,43470.0,43469.0,0.08707542]
[1644571873861,0.91145476,43470.0,43469.0,0.08707542]
[1644571874060,1.43904387,43470.0,43469.0,0.08707542]
[1644571874262,1.33848795,43470.0,43469.0,0.08707542]
[1644571874461,1.59172865,43470.0,43469.0,0.08707542]
[1644571874658,1.28093962,43470.0,43469.0,0.08707542]
[1644571874860,0.062489,43470.0,43469.0,0.08707542]
[1644571875066,0.115093,43472.0,43469.0,0.08707542]
[1644571875260,0.34344409,43479.0,43469.0,0.08707542]
[1644571875261,0.24554616,43475.0,43469.0,0.08707542]
[1644571875460,0.00067873,43472.0,43469.0,0.08707542]
[1644571875659,0.00067873,43472.0,43470.0,0.323068]
[1644571876059,0.08428427,43472.0,43471.0,0.0459]
[1644571876462,0.08360554,43472.0,43471.0,0.0459]
[1644571877705,0.08854554,43472.0,43471.0,0.0459]
[1644571877907,0.00494,43472.0,43471.0,0.0459]
[1644571878105,0.30216199,43473.0,43471.0,0.0459]
[1644571878306,0.00494,43472.0,43471.0,0.0459]
[1644571878506,0.30216199,43473.0,43471.0,0.0459]
[1644571879106,0.08051326,43472.0,43471.0,0.0459]
[1644571879707,0.30216199,43473.0,43471.0,0.0459]
[1644571880309,0.00065631,43474.0,43471.0,0.0459]
[1644571880759,0.00065631,43474.0,43472.0,0.323068]
[1644571880951,0.00065631,43474.0,43471.0,0.0459]
[1644571881150,0.12273408,43476.0,43471.0,0.0459]
[1644571881351,0.34502329,43474.0,43471.0,0.0459]
[1644571881550,0.34502329,43474.0,43469.0,0.08707542]
[1644571882551,0.34568145,43474.0,43469.0,0.08707542]
[1644571883652,0.11507932,43473.0,43469.0,0.08707542]
[1644571883951,0.39568145,43474.0,43469.0,0.08707542]
[1644571884817,0.39502329,43474.0,43469.0,0.08707542]
[1644571885015,0.39568145,43474.0,43469.0,0.08707542]
[1644571885214,0.51075955,43474.0,43469.0,0.08707542]
[1644571885916,0.51010139,43474.0,43469.0,0.08707542]
[1644571886116,0.46010139,43474.0,43469.0,0.08707542]
[1644571886317,0.46075928,43474.0,43469.0,0.08707542]
[1644571886616,0.66075928,43474.0,43469.0,0.08707542]
[1644571886815,0.00494,43473.0,43469.0,0.08707542]
[1644571887215,0.34117232,43471.0,43469.0,0.08707542]
[1644571888650,0.004653,43470.0,43469.0,0.08707542]
[1644571889251,0.054653,43470.0,43469.0,0.08707542]
[1644571889458,0.204653,43470.0,43469.0,0.08707542]
[1644571890553,0.254653,43470.0,43464.0,0.00065206]
[1644571890754,0.254653,43470.0,43460.0,0.00022699]
[1644571890755,0.28900021,43465.0,43460.0,0.00022699]
[1644571890953,0.35302457,43463.0,43457.0,0.00022699]
[1644571891153,0.35302457,43463.0,43456.0,0.33721506]
[1644571891154,0.55485459,43463.0,43456.0,0.322982]
[1644571891354,0.55485459,43463.0,43455.0,0.00022699]
[1644571891554,0.55485459,43463.0,43454.0,0.00283582]
[1644571891755,0.3338055,43457.0,43455.0,0.322982]
[1644571892003,0.3338055,43457.0,43456.0,0.322982]
[1644571892204,0.3338055,43457.0,43456.0,0.32363417]
[1644571893206,0.3338055,43457.0,43456.0,0.322982]
[1644571893406,0.3238055,43457.0,43456.0,0.322982]
[1644571893607,0.057557,43459.0,43455.0,0.00022699]
[1644571893811,0.05,43470.0,43455.0,0.32320899]
[1644571893812,0.1151,43467.0,43455.0,0.32320899]
[1644571894009,0.00065832,43469.0,43456.0,0.0459]
[1644571894210,0.00065832,43469.0,43456.0,0.10367499]
[1644571894409,0.10754367,43470.0,43456.0,0.10367499]
[1644571894611,0.3168161,43467.0,43460.0,0.00065373]
[1644571894809,0.32404411,43465.0,43460.0,0.00065373]
[1644571895761,0.06722366,43466.0,43460.0,0.00088072]
[1644571895956,0.06722366,43466.0,43460.0,0.00065373]
[1644571896757,0.06722366,43466.0,43458.0,0.00022699]
[1644571896958,0.05,43467.0,43461.0,0.00065301]
[1644571897162,0.00065571,43469.0,43463.0,0.115071]
[1644571897360,0.00065571,43469.0,43464.0,0.368882]
[1644571897560,0.00065571,43469.0,43464.0,0.69857608]
[1644571897761,0.00065571,43469.0,43464.0,0.79857608]
[1644571897958,0.00065571,43469.0,43464.0,0.468882]
[1644571898159,1.39857332,43471.0,43464.0,0.526422]
[1644571898369,1.39857332,43471.0,43464.0,0.20344]
[1644571898560,0.00065821,43469.0,43465.0,0.322982]
[1644571898760,0.00065821,43469.0,43466.0,0.0459]
[1644571898962,0.00065821,43469.0,43462.0,0.33094198]
[1644571899160,0.00065821,43469.0,43463.0,0.323006]
[1644571899362,0.057542,43470.0,43464.0,0.0459]
[1644571899603,0.057542,43470.0,43465.0,0.0459]
[1644571899803,0.057542,43470.0,43466.0,0.0459]
[1644571900003,0.057542,43470.0,43467.0,0.0459]
[1644571900204,1.34732515,43471.0,43468.0,0.0459]
[1644571900407,1.34732515,43471.0,43469.0,0.0459]
[1644571901003,1.06331254,43471.0,43469.0,0.0459]
[1644571901404,1.05831254,43471.0,43469.0,0.0459]
[1644571902308,1.4114734,43471.0,43469.0,0.0459]
[1644571903107,1.05831254,43471.0,43469.0,0.0459]
[1644571903355,0.00065838,43472.0,43469.0,0.0459]
[1644571903555,0.35,43470.0,43462.0,0.04655194]
[1644571903755,0.19899167,43472.0,43463.0,0.323006]
[1644571903953,0.49783503,43472.0,43462.0,0.00065194]
[1644571904153,0.29703021,43471.0,43459.0,0.323006]
[1644571904364,0.0822988,43467.0,43462.0,0.00065046]
[1644571904557,0.0822988,43467.0,43463.0,0.323006]
[1644571904755,0.69173893,43464.0,43463.0,0.323006]
[1644571905358,0.69173893,43464.0,43459.0,0.323006]
[1644571905556,0.69173893,43464.0,43461.0,0.00065047]
[1644571906558,0.07187967,43460.0,43457.0,0.00022699]
[1644571906760,0.07187967,43460.0,43457.0,0.323006]
[1644571907007,0.07187967,43460.0,43457.0,0.32323299]
[1644571907207,0.07187967,43460.0,43456.0,0.323006]
[1644571907610,0.67368652,43457.0,43456.0,0.32323299]
[1644571907808,0.67368652,43457.0,43456.0,0.32365782]
[1644571908411,0.29438065,43470.0,43456.0,0.32365782]
[1644571908608,0.29438065,43470.0,43456.0,0.42365782]
[1644571908609,0.59982968,43470.0,43456.0,0.42365782]
[1644571908908,0.59982968,43470.0,43459.0,0.05754629]
[1644571908909,0.35431584,43470.0,43459.0,0.05754629]
[1644571909110,0.35431584,43470.0,43459.0,0.05819806]
[1644571909310,0.00065829,43468.0,43459.0,0.05819806]
[1644571909512,0.73473787,43463.0,43459.0,0.00065177]
[1644571910109,0.73473787,43463.0,43458.0,0.323006]
[1644571910311,0.73473787,43463.0,43459.0,0.00065178]
[1644571910761,0.473006,43462.0,43459.0,0.00065178]
[1644571910960,0.15,43462.0,43459.0,0.00065178]
[1644571911154,0.06518485,43461.0,43459.0,0.00065178]
[1644571911355,0.06518485,43461.0,43457.0,0.00022699]
[1644571911559,0.06518485,43461.0,43458.0,0.00065055]
[1644571911757,0.12273985,43461.0,43458.0,0.00065055]
[1644571912563,0.12273985,43461.0,43455.0,0.323006]
[1644571912757,0.12273985,43461.0,43459.0,0.01206]
[1644571913858,0.057555,43461.0,43459.0,0.01206]
[1644571914060,0.057549,43464.0,43459.0,0.01206]
[1644571914906,0.07079729,43463.0,43459.0,0.01206]
[1644571915107,0.2842259,43460.0,43459.0,0.01271449]
[1644571916006,0.2842259,43460.0,43459.0,0.01206]
[1644571916409,0.057554,43461.0,43459.0,0.01206]
[1644571916608,0.07079729,43463.0,43459.0,0.01206]
[1644571916813,0.19647555,43466.0,43460.0,0.0459]
[1644571917013,0.00065909,43468.0,43461.0,0.38053818]
[1644571917211,0.00065909,43468.0,43463.0,0.323006]
[1644571917411,0.19647555,43471.0,43464.0,0.0459]
[1644571917711,0.00046281,43468.0,43466.0,0.057535]
[1644571917910,0.00046281,43468.0,43467.0,0.0459]
[1644571918558,0.19647555,43471.0,43467.0,0.0459]
[1644571918765,0.19713339,43470.0,43467.0,0.0459]
[1644571919363,0.07950007,43469.0,43467.0,0.0459]
[1644571919760,0.12950007,43469.0,43467.0,0.0459]
[1644571919964,0.32597562,43469.0,43468.0,0.01206]
[1644571920161,0.12950007,43469.0,43468.0,0.05796]
[1644571920762,0.55250607,43469.0,43468.0,0.01206]
[1644571920961,1.04742548,43469.0,43468.0,0.01206]
[1644571921162,0.85094993,43469.0,43468.0,0.01206]
[1644571921563,0.60250607,43469.0,43468.0,0.01206]
[1644571921765,1.16515797,43469.0,43468.0,0.00596225]
[1644571922005,1.16522012,43469.0,43468.0,0.00596225]
[1644571922406,0.91964413,43469.0,43468.0,0.00596225]
[1644571923206,0.0575484,43467.0,43463.0,0.00596225]
[1644571923407,0.004625,43464.0,43463.0,0.00596225]
[1644571923606,0.66995915,43464.0,43463.0,0.00596225]
[1644571925009,0.86642599,43464.0,43463.0,0.00596225]
[1644571925966,0.53412258,43464.0,43463.0,0.00596225]
[1644571926365,0.53412258,43464.0,43461.0,0.0006505]
[1644571926570,0.52949758,43464.0,43461.0,0.0006505]
[1644571926766,0.07755509,43462.0,43461.0,0.0006505]
[1644571926967,0.07755509,43462.0,43460.0,0.00596225]
[1644571927266,0.07755509,43462.0,43460.0,0.00661276]
[1644571928069,0.91477033,43464.0,43460.0,0.00661276]
[1644571928271,0.19646684,43464.0,43461.0,0.057545]
[1644571928872,0.19646684,43463.0,43461.0,0.057545]
[1644571929510,0.08780635,43462.0,43461.0,0.057545]
[1644571930511,0.08780635,43462.0,43461.0,0.06350725]
[1644571931312,0.19646684,43463.0,43461.0,0.06350725]
[1644571932714,0.34244589,43465.0,43461.0,0.06350725]
[1644571933016,0.19649705,43464.0,43461.0,0.06350725]
[1644571933260,0.19649705,43465.0,43461.0,0.06350725]
[1644571933655,0.19649705,43465.0,43461.0,0.02607352]
[1644571933854,0.19649705,43466.0,43461.0,0.02607352]
[1644571934258,0.64452624,43468.0,43461.0,0.02607352]
[1644571934259,0.19649705,43465.0,43461.0,0.02607352]
[1644571934457,0.19649705,43465.0,43461.0,0.02675511]
[1644571934856,0.19649705,43465.0,43461.0,0.1993698]
[1644571935058,0.19649705,43465.0,43462.0,0.103439]
[1644571935357,0.26104164,43466.0,43463.0,0.00596225]
[1644571935560,0.06511841,43466.0,43464.0,0.0459]
[1644571936157,0.06511841,43466.0,43464.0,0.103439]
[1644571937406,0.06511841,43466.0,43464.0,0.0459]
[1644571937609,0.12266641,43466.0,43464.0,0.0459]
[1644571938612,0.12266641,43466.0,43465.0,0.00596225]
[1644571939009,0.18021355,43466.0,43465.0,0.00596225]
[1644571939412,1.00739366,43466.0,43465.0,0.00596225]
[1644571940013,1.11010564,43466.0,43465.0,0.00596225]
[1644571940612,0.062182,43464.0,43462.0,0.00069511]
[1644571940863,0.66597193,43463.0,43462.0,0.00069511]
[1644571941263,1.15909659,43463.0,43462.0,0.00069511]
[1644571941463,0.15,43456.0,43451.0,0.47212699]
[1644571941664,0.46596438,43455.0,43450.0,0.323106]
[1644571941863,0.46596438,43455.0,43451.0,0.002781]
[1644571942066,0.46596438,43455.0,43451.0,0.00300799]
[1644571942262,0.46596438,43455.0,43451.0,0.002781]
[1644571942665,0.46596438,43455.0,43450.0,0.0001]
[1644571942864,0.46596438,43455.0,43451.0,0.00069515]
[1644571943463,0.46596438,43455.0,43451.0,0.00092214]
[1644571943662,0.63782237,43454.0,43451.0,0.00069515]
[1644571943868,0.63782237,43454.0,43450.0,0.0001]
[1644571943869,0.34833329,43452.0,43450.0,0.0001]
[1644571944073,0.34833329,43452.0,43432.0,0.41175692]
[1644571944074,0.9,43450.0,43432.0,0.41175692]
[1644571944273,0.19833329,43434.0,43433.0,0.23320755]
[1644571944517,0.19833329,43434.0,43421.0,0.25513996]
[1644571944518,0.08418232,43427.0,43421.0,0.25513996]
[1644571944720,0.323006,43425.0,43421.0,0.01]
[1644571944916,0.49638193,43427.0,43421.0,0.01]
[1644571944917,0.323006,43426.0,43421.0,0.01]
[1644571945117,0.49638193,43427.0,43421.0,0.00191808]
[1644571945519,0.34833329,43425.0,43421.0,0.00191808]
[1644571945718,0.322594,43424.0,43421.0,0.00191808]
[1644571945918,0.322594,43423.0,43421.0,0.00191808]
[1644571946117,0.40593829,43425.0,43421.0,0.00191808]
[1644571946318,0.322594,43424.0,43421.0,0.00191808]
[1644571946520,0.46354429,43425.0,43421.0,0.00191808]
[1644571946719,0.115211,43425.0,43421.0,0.00191808]
[1644571946919,0.15,43424.0,43421.0,0.00191808]
[1644571947521,0.19833329,43422.0,43421.0,0.00191808]
[1644571947719,0.29559166,43424.0,43421.0,0.00191808]
[1644571947919,0.19833329,43422.0,43421.0,0.00191808]
[1644571948359,0.322594,43425.0,43421.0,0.00191808]
[1644571948559,0.322594,43426.0,43421.0,0.00191808]
[1644571948757,0.08418232,43427.0,43421.0,0.00191808]
[1644571948956,0.08418232,43427.0,43421.0,0.00261212]
[1644571949157,0.322594,43426.0,43421.0,0.00261212]
[1644571949362,0.322594,43425.0,43421.0,0.00261212]
[1644571949559,0.322594,43425.0,43423.0,0.0015017]
[1644571950157,0.72092729,43425.0,43423.0,0.0015017]
[1644571950359,0.322594,43424.0,43423.0,0.0015017]